[Event "*** Titled Tuesday Blitz"]
[Site "Chess.com"]
[Date "2020.11.24"]
[Round "2"]
[White "RamyresCoelho"]
[Black "ljuks68"]
[Result "0-1"]
[WhiteElo "2084"]
[BlackElo "2397"]
[TimeControl "180+1"]
[EndTime "10:34:42 PST"]
[Termination "ljuks68 won by checkmate"]

1. e4 {[%clk 0:03:00]} 1... e6 {[%clk 0:02:59.7]} 2. d4 {[%clk 0:02:59.6]} 2...
d5 {[%clk 0:03:00]} 3. Nc3 {[%clk 0:02:59.8]} 3... Bb4 {[%clk 0:02:59.1]} 4. e5
{[%clk 0:02:58.6]} 4... Ne7 {[%clk 0:02:59.2]} 5. a3 {[%clk 0:02:58.8]} 5...
Bxc3+ {[%clk 0:02:58.7]} 6. bxc3 {[%clk 0:02:59.7]} 6... c5 {[%clk 0:02:58.9]}
7. Nf3 {[%clk 0:02:57]} 7... Bd7 {[%clk 0:02:58.3]} 8. a4 {[%clk 0:02:56.8]}
8... Qa5 {[%clk 0:02:58.2]} 9. Qd2 {[%clk 0:02:52.5]} 9... cxd4 {[%clk
0:02:57.2]} 10. cxd4 {[%clk 0:02:52.1]} 10... Qxd2+ {[%clk 0:02:56.7]} 11. Bxd2
{[%clk 0:02:53]} 11... Nbc6 {[%clk 0:02:54.4]} 12. Bd3 {[%clk 0:02:50.8]} 12...
Nf5 {[%clk 0:02:54.4]} 13. c3 {[%clk 0:02:45]} 13... Na5 {[%clk 0:02:51.4]} 14.
g4 {[%clk 0:02:44.8]} 14... Ne7 {[%clk 0:02:48.7]} 15. Bc2 {[%clk 0:02:36.3]}
15... h5 {[%clk 0:02:38.4]} 16. g5 {[%clk 0:02:26.6]} 16... g6 {[%clk 0:02:37]}
17. O-O {[%clk 0:02:25.2]} 17... Rc8 {[%clk 0:02:29.6]} 18. Rfb1 {[%clk
0:02:20.7]} 18... O-O {[%clk 0:02:27.9]} 19. Ne1 {[%clk 0:02:16.8]} 19... b6
{[%clk 0:02:09.3]} 20. Nd3 {[%clk 0:02:11.1]} 20... Rc7 {[%clk 0:02:00.1]} 21.
Nb4 {[%clk 0:02:07.4]} 21... Nc4 {[%clk 0:01:59.1]} 22. Be1 {[%clk 0:01:58.4]}
22... a5 {[%clk 0:01:45.6]} 23. Nd3 {[%clk 0:01:52.3]} 23... Rb8 {[%clk
0:01:43.9]} 24. Rb3 {[%clk 0:01:45.2]} 24... Rcb7 {[%clk 0:01:41.3]} 25. Rbb1
{[%clk 0:01:29.9]} 25... Bc6 {[%clk 0:01:06.8]} 26. Kf1 {[%clk 0:01:28.2]} 26...
Rc7 {[%clk 0:00:46]} 27. Nc5 {[%clk 0:01:22.6]} 27... Rcc8 {[%clk 0:00:33.8]}
28. Na6 {[%clk 0:01:21.2]} 28... Ra8 {[%clk 0:00:32.9]} 29. Nb4 {[%clk
0:01:04.5]} 29... axb4 {[%clk 0:00:32.2]} 30. cxb4 {[%clk 0:01:05.4]} 30... b5
{[%clk 0:00:27.2]} 31. a5 {[%clk 0:01:03.5]} 31... Bb7 {[%clk 0:00:26.9]} 32.
Bd3 {[%clk 0:01:01.6]} 32... Nc6 {[%clk 0:00:24.8]} 33. Bc3 {[%clk 0:01:00.1]}
33... Nb8 {[%clk 0:00:19.3]} 34. Rb3 {[%clk 0:01:00]} 34... Na6 {[%clk
0:00:18.6]} 35. h4 {[%clk 0:00:59.9]} 35... Rc7 {[%clk 0:00:18.3]} 36. Ke2
{[%clk 0:01:00.4]} 36... Rac8 {[%clk 0:00:18.1]} 37. Rd1 {[%clk 0:01:00.4]}
37... Nxe5 {[%clk 0:00:17.1]} 38. Bxb5 {[%clk 0:00:57.2]} 38... Rxc3 {[%clk
0:00:16]} 39. Rxc3 {[%clk 0:00:58.1]} 39... Rxc3 {[%clk 0:00:15.9]} 40. dxe5
{[%clk 0:00:59]} 40... Nxb4 {[%clk 0:00:16.1]} 41. Rb1 {[%clk 0:00:57.8]} 41...
Na6 {[%clk 0:00:14.4]} 42. Bd3 {[%clk 0:00:56.1]} 42... Bc8 {[%clk 0:00:12.4]}
43. Rb6 {[%clk 0:00:53]} 43... Nc5 {[%clk 0:00:10.2]} 44. Rc6 {[%clk 0:00:48.3]}
44... Bb7 {[%clk 0:00:05.1]} 45. Rc7 {[%clk 0:00:47.5]} 45... Rxd3 {[%clk
0:00:05.1]} 46. Rxc5 {[%clk 0:00:46.7]} 46... Ra3 {[%clk 0:00:05.3]} 47. Kd2
{[%clk 0:00:44.2]} 47... Ba6 {[%clk 0:00:05.4]} 48. Rc6 {[%clk 0:00:42.8]} 48...
Bc4 {[%clk 0:00:05.4]} 49. Rc5 {[%clk 0:00:41.7]} 49... Kf8 {[%clk 0:00:04.4]}
50. Ke1 {[%clk 0:00:41.5]} 50... Ke8 {[%clk 0:00:04.4]} 51. Rc8+ {[%clk
0:00:40.3]} 51... Kd7 {[%clk 0:00:04.5]} 52. Rf8 {[%clk 0:00:40.8]} 52... Ke7
{[%clk 0:00:03.9]} 53. Ra8 {[%clk 0:00:41.2]} 53... d4 {[%clk 0:00:03.5]} 54.
Ra7+ {[%clk 0:00:41.7]} 54... Kf8 {[%clk 0:00:02.5]} 55. Ra8+ {[%clk 0:00:42.3]}
55... Kg7 {[%clk 0:00:03.2]} 56. Ra7 {[%clk 0:00:42.9]} 56... Ra2 {[%clk
0:00:03.2]} 57. Rd7 {[%clk 0:00:42.9]} 57... Rxa5 {[%clk 0:00:02.3]} 58. Rxd4
{[%clk 0:00:43.8]} 58... Rxe5+ {[%clk 0:00:02.8]} 59. Kd2 {[%clk 0:00:43.1]}
59... Bd5 {[%clk 0:00:03.7]} 60. f4 {[%clk 0:00:42.9]} 60... Re4 {[%clk
0:00:03.7]} 61. Rd3 {[%clk 0:00:40.1]} 61... Rxf4 {[%clk 0:00:03.6]} 62. Ra3
{[%clk 0:00:41]} 62... Rxh4 {[%clk 0:00:03.8]} 63. Ra7 {[%clk 0:00:41.9]} 63...
Rg4 {[%clk 0:00:04.3]} 64. Re7 {[%clk 0:00:42.8]} 64... Rxg5 {[%clk 0:00:04.9]}
65. Ke3 {[%clk 0:00:43.1]} 65... Rf5 {[%clk 0:00:05.8]} 66. Ra7 {[%clk 0:00:44]}
66... h4 {[%clk 0:00:06.3]} 67. Kd4 {[%clk 0:00:44.9]} 67... g5 {[%clk
0:00:07.1]} 68. Ra2 {[%clk 0:00:45.3]} 68... h3 {[%clk 0:00:07.2]} 69. Rh2
{[%clk 0:00:45.7]} 69... g4 {[%clk 0:00:07.9]} 70. Ke3 {[%clk 0:00:45.9]} 70...
Kg6 {[%clk 0:00:08.8]} 71. Ke2 {[%clk 0:00:45.9]} 71... Kg5 {[%clk 0:00:09.6]}
72. Ke3 {[%clk 0:00:46.7]} 72... Kh4 {[%clk 0:00:10.5]} 73. Rc2 {[%clk
0:00:47.2]} 73... g3 {[%clk 0:00:11.1]} 74. Rd2 {[%clk 0:00:48.1]} 74... h2
{[%clk 0:00:11.1]} 75. Rd4+ {[%clk 0:00:49]} 75... Kg5 {[%clk 0:00:10.6]} 76.
Ke2 {[%clk 0:00:49]} 76... h1=Q {[%clk 0:00:09.3]} 77. Rd2 {[%clk 0:00:47.8]}
77... Qf3+ {[%clk 0:00:08.2]} 78. Ke1 {[%clk 0:00:46.5]} 78... Qf1# {[%clk
0:00:08.1]} 0-1

[Event "*** Titled Tuesday Blitz"]
[Site "Chess.com"]
[Date "2020.11.24"]
[Round "2"]
[White "zurzan"]
[Black "Unknown_IM"]
[Result "1/2-1/2"]
[WhiteElo "2085"]
[BlackElo "2385"]
[TimeControl "180+1"]
[EndTime "10:34:58 PST"]
[Termination "Game drawn - insufficient material"]

1. f4 {[%clk 0:03:00.9]} 1... e5 {[%clk 0:02:57.2]} 2. fxe5 {[%clk 0:03:00.6]}
2... d6 {[%clk 0:02:57.7]} 3. exd6 {[%clk 0:03:01.5]} 3... Bxd6 {[%clk
0:02:56.4]} 4. Nf3 {[%clk 0:03:02.4]} 4... g5 {[%clk 0:02:55.8]} 5. g3 {[%clk
0:03:02.8]} 5... g4 {[%clk 0:02:55.4]} 6. Nh4 {[%clk 0:03:02.7]} 6... Nf6 {[%clk
0:02:53]} 7. Nc3 {[%clk 0:03:01.6]} 7... Bd7 {[%clk 0:02:51]} 8. Bg2 {[%clk
0:03:01]} 8... Nc6 {[%clk 0:02:50.9]} 9. O-O {[%clk 0:03:00.5]} 9... Qe7 {[%clk
0:02:34.3]} 10. d4 {[%clk 0:03:00]} 10... O-O-O {[%clk 0:02:33.2]} 11. Bg5
{[%clk 0:02:54.3]} 11... Nxd4 {[%clk 0:01:58.1]} 12. Bxf6 {[%clk 0:02:46.8]}
12... Qe3+ {[%clk 0:01:58]} 13. Kh1 {[%clk 0:02:43.8]} 13... Bc5 {[%clk
0:01:57.8]} 14. Nd5 {[%clk 0:02:37.2]} 14... Qxe2 {[%clk 0:01:50]} 15. Qxe2
{[%clk 0:02:36.3]} 15... Nxe2 {[%clk 0:01:50.9]} 16. Bxh8 {[%clk 0:02:34.9]}
16... Rxh8 {[%clk 0:01:50]} 17. b4 {[%clk 0:02:28.6]} 17... Bd4 {[%clk
0:01:44.5]} 18. Rae1 {[%clk 0:02:16]} 18... Bb5 {[%clk 0:01:40.5]} 19. Ne7+
{[%clk 0:02:08.7]} 19... Kb8 {[%clk 0:01:40.1]} 20. Nef5 {[%clk 0:02:05]} 20...
Bb6 {[%clk 0:01:39.1]} 21. a4 {[%clk 0:02:00.7]} 21... Bxa4 {[%clk 0:01:15.6]}
22. Rxe2 {[%clk 0:02:00]} 22... Bb5 {[%clk 0:01:16.5]} 23. Rfe1 {[%clk 0:01:56]}
23... Bxe2 {[%clk 0:01:15.8]} 24. Rxe2 {[%clk 0:01:56.9]} 24... Rd8 {[%clk
0:01:15.4]} 25. Bf1 {[%clk 0:01:49.6]} 25... c5 {[%clk 0:01:13.9]} 26. c3 {[%clk
0:01:45.9]} 26... cxb4 {[%clk 0:01:12.1]} 27. cxb4 {[%clk 0:01:45.8]} 27... Rd1
{[%clk 0:01:11.7]} 28. Kg2 {[%clk 0:01:45.4]} 28... a5 {[%clk 0:01:11.5]} 29.
bxa5 {[%clk 0:01:44.8]} 29... Bxa5 {[%clk 0:01:12.4]} 30. Ne3 {[%clk 0:01:37.3]}
30... Rd4 {[%clk 0:01:10.6]} 31. Nhf5 {[%clk 0:01:35.8]} 31... Ra4 {[%clk
0:01:08.9]} 32. Nd6 {[%clk 0:01:30.5]} 32... Bb6 {[%clk 0:01:06.9]} 33. Nxf7
{[%clk 0:01:28.2]} 33... Re4 {[%clk 0:01:03.6]} 34. Nd5 {[%clk 0:01:18.6]} 34...
Rxe2+ {[%clk 0:01:02.2]} 35. Bxe2 {[%clk 0:01:18.9]} 35... Bd4 {[%clk
0:01:01.9]} 36. Ng5 {[%clk 0:01:17.3]} 36... h5 {[%clk 0:01:00.9]} 37. Ne4
{[%clk 0:01:14.6]} 37... Kc8 {[%clk 0:01:00.4]} 38. Nb4 {[%clk 0:01:13.8]} 38...
Kd7 {[%clk 0:01:00]} 39. Nc2 {[%clk 0:01:13.7]} 39... Be5 {[%clk 0:00:59.7]} 40.
Ne3 {[%clk 0:01:06.7]} 40... Kc6 {[%clk 0:00:58]} 41. Nf5 {[%clk 0:01:06.2]}
41... b5 {[%clk 0:00:57]} 42. Ng5 {[%clk 0:01:00]} 42... Kc5 {[%clk 0:00:53.7]}
43. Nf7 {[%clk 0:00:59]} 43... Bf6 {[%clk 0:00:51.6]} 44. Kf1 {[%clk 0:00:49.3]}
44... b4 {[%clk 0:00:51.7]} 45. Ke1 {[%clk 0:00:45.8]} 45... b3 {[%clk
0:00:50.5]} 46. Bd3 {[%clk 0:00:44.6]} 46... b2 {[%clk 0:00:47.4]} 47. Kd1
{[%clk 0:00:44.1]} 47... Kd5 {[%clk 0:00:42.1]} 48. N7h6 {[%clk 0:00:40.7]}
48... Ke5 {[%clk 0:00:38.7]} 49. Kc2 {[%clk 0:00:39]} 49... Kd5 {[%clk
0:00:38.5]} 50. Ba6 {[%clk 0:00:35]} 50... Ke6 {[%clk 0:00:31.4]} 51. Kb1 {[%clk
0:00:33.2]} 51... Ke5 {[%clk 0:00:30.7]} 52. Kxb2 {[%clk 0:00:32]} 52... Ke4+
{[%clk 0:00:30.2]} 53. Kc2 {[%clk 0:00:31.8]} 53... Kf3 {[%clk 0:00:31.1]} 54.
Bb7+ {[%clk 0:00:27.6]} 54... Kf2 {[%clk 0:00:31.2]} 55. Nd6 {[%clk 0:00:04.4]}
55... Kg1 {[%clk 0:00:30.9]} 56. Ne4 {[%clk 0:00:04.5]} 56... Be7 {[%clk
0:00:30.2]} 57. Nf5 {[%clk 0:00:03.8]} 57... Bd8 {[%clk 0:00:29.7]} 58. Ng7
{[%clk 0:00:03.9]} 58... h4 {[%clk 0:00:27.1]} 59. Nh5 {[%clk 0:00:04.8]} 59...
Kxh2 {[%clk 0:00:25.2]} 60. gxh4 {[%clk 0:00:04.2]} 60... Bxh4 {[%clk
0:00:25.9]} 61. Bd5 {[%clk 0:00:01.9]} 61... Kh3 {[%clk 0:00:23.1]} 62. Kd1
{[%clk 0:00:02.8]} 62... g3 {[%clk 0:00:23]} 63. Nhxg3 {[%clk 0:00:02.5]} 63...
Bxg3 {[%clk 0:00:22.2]} 64. Ke2 {[%clk 0:00:03.4]} 64... Be5 {[%clk 0:00:21.1]}
65. Kf3 {[%clk 0:00:04.3]} 65... Kh4 {[%clk 0:00:21]} 66. Nf2 {[%clk 0:00:03.3]}
66... Kg5 {[%clk 0:00:20.5]} 67. Be4 {[%clk 0:00:04.2]} 67... Kf6 {[%clk
0:00:20.8]} 68. Nd3 {[%clk 0:00:04.7]} 68... Bb8 {[%clk 0:00:21.3]} 69. Nc5
{[%clk 0:00:04.5]} 69... Ke7 {[%clk 0:00:21]} 70. Na6 {[%clk 0:00:04.1]} 70...
Ba7 {[%clk 0:00:20.5]} 71. Kf4 {[%clk 0:00:03.7]} 71... Kd7 {[%clk 0:00:21]} 72.
Kf5 {[%clk 0:00:04.6]} 72... Kc8 {[%clk 0:00:21.5]} 73. Nb4 {[%clk 0:00:05]}
73... Bc5 {[%clk 0:00:21.5]} 74. Ke5 {[%clk 0:00:05.9]} 74... Bxb4 {[%clk
0:00:21.4]} 1/2-1/2

[Event "*** Titled Tuesday Blitz"]
[Site "Chess.com"]
[Date "2020.11.24"]
[Round "2"]
[White "champ2005"]
[Black "Arkady_Gitelson"]
[Result "1/2-1/2"]
[WhiteElo "3014"]
[BlackElo "2594"]
[TimeControl "180+1"]
[EndTime "10:35:01 PST"]
[Termination "Game drawn by repetition"]

1. c4 {[%clk 0:03:00.9]} 1... g6 {[%clk 0:02:58.9]} 2. Nc3 {[%clk 0:03:00.5]}
2... Bg7 {[%clk 0:02:59.1]} 3. g3 {[%clk 0:03:01.1]} 3... d6 {[%clk 0:02:59.3]}
4. Bg2 {[%clk 0:03:01.4]} 4... Nc6 {[%clk 0:03:00]} 5. Nf3 {[%clk 0:03:00.9]}
5... e5 {[%clk 0:03:00.6]} 6. O-O {[%clk 0:03:01.4]} 6... f5 {[%clk 0:03:01.1]}
7. Rb1 {[%clk 0:03:00.8]} 7... Nf6 {[%clk 0:03:01.5]} 8. d3 {[%clk 0:03:01.1]}
8... O-O {[%clk 0:03:01.4]} 9. b4 {[%clk 0:03:01.4]} 9... h6 {[%clk 0:02:59.2]}
10. b5 {[%clk 0:03:01.5]} 10... Ne7 {[%clk 0:02:59.3]} 11. a4 {[%clk 0:02:59.1]}
11... Be6 {[%clk 0:02:58.9]} 12. Ba3 {[%clk 0:02:57.2]} 12... b6 {[%clk
0:02:56.1]} 13. Nd2 {[%clk 0:02:55.8]} 13... Rb8 {[%clk 0:02:55.4]} 14. a5
{[%clk 0:02:55.5]} 14... g5 {[%clk 0:02:50.6]} 15. axb6 {[%clk 0:02:54.3]} 15...
axb6 {[%clk 0:02:51.2]} 16. Qc2 {[%clk 0:02:45.6]} 16... Qd7 {[%clk 0:02:38.7]}
17. Rfc1 {[%clk 0:02:44.7]} 17... h5 {[%clk 0:02:24]} 18. Nf3 {[%clk 0:02:29.7]}
18... Bh6 {[%clk 0:02:22.7]} 19. Rd1 {[%clk 0:02:29.6]} 19... Ng6 {[%clk
0:02:19.2]} 20. d4 {[%clk 0:02:26.7]} 20... e4 {[%clk 0:02:16.2]} 21. Ne5 {[%clk
0:02:27.1]} 21... Qg7 {[%clk 0:01:52.3]} 22. Nxg6 {[%clk 0:02:26.6]} 22... Qxg6
{[%clk 0:01:53.2]} 23. c5 {[%clk 0:02:27.2]} 23... bxc5 {[%clk 0:01:34.6]} 24.
dxc5 {[%clk 0:02:28.1]} 24... dxc5 {[%clk 0:01:35.3]} 25. Bxc5 {[%clk
0:02:28.3]} 25... Rfe8 {[%clk 0:01:34.4]} 26. Bd4 {[%clk 0:02:26.1]} 26... h4
{[%clk 0:01:26]} 27. Na4 {[%clk 0:02:25.4]} 27... f4 {[%clk 0:01:21.1]} 28. Qxc7
{[%clk 0:02:21.3]} 28... hxg3 {[%clk 0:00:57.2]} 29. hxg3 {[%clk 0:02:18.5]}
29... e3 {[%clk 0:00:56]} 30. Bc6 {[%clk 0:02:10.7]} 30... exf2+ {[%clk
0:00:50.2]} 31. Bxf2 {[%clk 0:02:11.6]} 31... Rec8 {[%clk 0:00:42.3]} 32. Qd6
{[%clk 0:02:03.6]} 32... Ng4 {[%clk 0:00:42]} 33. Bd7 {[%clk 0:01:51.3]} 33...
Re8 {[%clk 0:00:40.8]} 34. Bxe8 {[%clk 0:01:46.4]} 34... Rxe8 {[%clk 0:00:41.7]}
35. Bc5 {[%clk 0:00:40.7]} 35... Qh5 {[%clk 0:00:40.3]} 36. Qc6 {[%clk
0:00:36.5]} 36... fxg3 {[%clk 0:00:28.7]} 37. Qg2 {[%clk 0:00:29.6]} 37... Bf5
{[%clk 0:00:28.5]} 38. Rb4 {[%clk 0:00:26.8]} 38... Qh2+ {[%clk 0:00:19.2]} 39.
Qxh2 {[%clk 0:00:26.4]} 39... gxh2+ {[%clk 0:00:20.1]} 40. Kh1 {[%clk
0:00:23.4]} 40... Be4+ {[%clk 0:00:20.2]} 41. Rxe4 {[%clk 0:00:20.4]} 41... Rxe4
{[%clk 0:00:21.1]} 42. b6 {[%clk 0:00:17.9]} 42... Bg7 {[%clk 0:00:17.3]} 43. b7
{[%clk 0:00:15.8]} 43... Be5 {[%clk 0:00:16.8]} 44. Nb6 {[%clk 0:00:16.2]} 44...
Rxe2 {[%clk 0:00:13.8]} 45. Nd7 {[%clk 0:00:15.8]} 45... Bg3 {[%clk 0:00:13.5]}
46. Bd4 {[%clk 0:00:11.9]} 46... Nf2+ {[%clk 0:00:10]} 47. Bxf2 {[%clk
0:00:09.4]} 47... Rxf2 {[%clk 0:00:10.9]} 48. Rb1 {[%clk 0:00:09.8]} 48... Kf7
{[%clk 0:00:09.7]} 49. b8=Q {[%clk 0:00:07.1]} 49... Bxb8 {[%clk 0:00:09.6]} 50.
Rxb8 {[%clk 0:00:06.9]} 50... Ke6 {[%clk 0:00:08.6]} 51. Nc5+ {[%clk 0:00:06.3]}
51... Kd5 {[%clk 0:00:08.5]} 52. Nd3 {[%clk 0:00:06.8]} 52... Rd2 {[%clk
0:00:08.5]} 53. Ne1 {[%clk 0:00:06]} 53... Kc4 {[%clk 0:00:06.7]} 54. Re8 {[%clk
0:00:05]} 54... g4 {[%clk 0:00:06.5]} 55. Re4+ {[%clk 0:00:04.8]} 55... Kd5
{[%clk 0:00:06.8]} 56. Re3 {[%clk 0:00:02.3]} 56... Kd4 {[%clk 0:00:06]} 57. Re8
{[%clk 0:00:02.5]} 57... Kc3 {[%clk 0:00:05.3]} 58. Re3+ {[%clk 0:00:02.1]}
58... Kd4 {[%clk 0:00:04.9]} 59. Re8 {[%clk 0:00:01.6]} 59... Kc3 {[%clk
0:00:05]} 60. Ng2 {[%clk 0:00:02.2]} 60... g3 {[%clk 0:00:04.7]} 61. Rc8+ {[%clk
0:00:01.9]} 61... Kb2 {[%clk 0:00:04.2]} 62. Rb8+ {[%clk 0:00:02.2]} 62... Kc1
{[%clk 0:00:04.1]} 63. Rc8+ {[%clk 0:00:02.4]} 63... Kb2 {[%clk 0:00:04.3]} 64.
Rb8+ {[%clk 0:00:02.7]} 64... Kc1 {[%clk 0:00:04.5]} 65. Ne3 {[%clk 0:00:03.2]}
65... Re2 {[%clk 0:00:04.2]} 66. Rc8+ {[%clk 0:00:03.7]} 66... Kb1 {[%clk
0:00:04.2]} 67. Rb8+ {[%clk 0:00:04]} 67... Kc1 {[%clk 0:00:04.2]} 68. Rc8+
{[%clk 0:00:04.5]} 68... Kb1 {[%clk 0:00:04.5]} 69. Rb8+ {[%clk 0:00:05]} 69...
Kc1 {[%clk 0:00:04.9]} 1/2-1/2

[Event "*** Titled Tuesday Blitz"]
[Site "Chess.com"]
[Date "2020.11.24"]
[Round "2"]
[White "mortngabriel"]
[Black "DenLaz"]
[Result "0-1"]
[WhiteElo "2347"]
[BlackElo "2764"]
[TimeControl "180+1"]
[EndTime "10:35:04 PST"]
[Termination "DenLaz won by resignation"]

1. d4 {[%clk 0:03:00.9]} 1... d5 {[%clk 0:02:59.2]} 2. c4 {[%clk 0:03:00.2]}
2... c6 {[%clk 0:02:59]} 3. cxd5 {[%clk 0:02:59]} 3... cxd5 {[%clk 0:02:59.9]}
4. Nc3 {[%clk 0:02:59.9]} 4... Nf6 {[%clk 0:02:59.9]} 5. Bf4 {[%clk 0:03:00.5]}
5... Nc6 {[%clk 0:02:59.6]} 6. e3 {[%clk 0:03:00.4]} 6... Bf5 {[%clk 0:03:00]}
7. Qb3 {[%clk 0:02:59.5]} 7... Na5 {[%clk 0:02:57.1]} 8. Qa4+ {[%clk 0:02:59.5]}
8... Bd7 {[%clk 0:02:57.7]} 9. Qc2 {[%clk 0:03:00.1]} 9... e6 {[%clk 0:02:57]}
10. Nf3 {[%clk 0:02:58.8]} 10... Be7 {[%clk 0:02:57.3]} 11. Bd3 {[%clk
0:02:58.3]} 11... Nc6 {[%clk 0:02:52.2]} 12. a3 {[%clk 0:02:57.8]} 12... Nh5
{[%clk 0:02:49.2]} 13. Be5 {[%clk 0:02:44.6]} 13... f6 {[%clk 0:02:45]} 14. Bg3
{[%clk 0:02:44.2]} 14... f5 {[%clk 0:02:44.6]} 15. Be5 {[%clk 0:02:34.7]} 15...
Nf6 {[%clk 0:02:38.2]} 16. h3 {[%clk 0:02:31.2]} 16... O-O {[%clk 0:02:36.9]}
17. O-O {[%clk 0:02:30.4]} 17... Rc8 {[%clk 0:02:33.3]} 18. Bh2 {[%clk
0:02:07.9]} 18... Ne4 {[%clk 0:02:31.2]} 19. Qe2 {[%clk 0:01:55.7]} 19... Bf6
{[%clk 0:01:48.2]} 20. Rac1 {[%clk 0:01:42.6]} 20... Be8 {[%clk 0:01:42.6]} 21.
Ne5 {[%clk 0:01:03.3]} 21... Nxe5 {[%clk 0:01:07]} 22. Bxe4 {[%clk 0:00:49.9]}
22... fxe4 {[%clk 0:00:57.6]} 23. dxe5 {[%clk 0:00:44.7]} 23... Bh4 {[%clk
0:00:55.3]} 24. Qg4 {[%clk 0:00:40.2]} 24... Rf5 {[%clk 0:00:24.6]} 25. Bg3
{[%clk 0:00:24.9]} 25... Bxg3 {[%clk 0:00:21]} 26. Qxg3 {[%clk 0:00:25.2]} 26...
Bc6 {[%clk 0:00:19.6]} 27. Ne2 {[%clk 0:00:24.7]} 27... Qg5 {[%clk 0:00:17.9]}
28. Qxg5 {[%clk 0:00:18.2]} 28... Rxg5 {[%clk 0:00:18.8]} 29. Nd4 {[%clk
0:00:14.8]} 29... Rxe5 {[%clk 0:00:10.7]} 30. b4 {[%clk 0:00:14.9]} 30... a6
{[%clk 0:00:04.9]} 31. a4 {[%clk 0:00:14.4]} 31... Rd8 {[%clk 0:00:04.5]} 32. b5
{[%clk 0:00:13.7]} 32... axb5 {[%clk 0:00:04.5]} 33. axb5 {[%clk 0:00:14.6]}
33... Be8 {[%clk 0:00:05.4]} 34. Rc7 {[%clk 0:00:14.5]} 34... Rd7 {[%clk
0:00:04.8]} 35. Rc8 {[%clk 0:00:14.6]} 35... Kf7 {[%clk 0:00:05]} 36. Rfc1
{[%clk 0:00:13.9]} 36... Rg5 {[%clk 0:00:04.1]} 37. Nxe6 {[%clk 0:00:13.4]}
37... Kxe6 {[%clk 0:00:03.9]} 38. Rxe8+ {[%clk 0:00:13.8]} 38... Kd6 {[%clk
0:00:04.6]} 39. b6 {[%clk 0:00:11.5]} 39... Rg6 {[%clk 0:00:04.6]} 40. Kf1
{[%clk 0:00:09.6]} 40... Re6 {[%clk 0:00:04.4]} 41. Rec8 {[%clk 0:00:07.1]}
41... Ke5 {[%clk 0:00:03.7]} 42. Rb1 {[%clk 0:00:06.1]} 42... h5 {[%clk
0:00:02.7]} 43. Rc7 {[%clk 0:00:05.2]} 43... Ree7 {[%clk 0:00:02.5]} 44. Rbc1
{[%clk 0:00:04.7]} 44... Kd6 {[%clk 0:00:02.8]} 45. R7c5 {[%clk 0:00:03.1]}
45... Ke6 {[%clk 0:00:03.3]} 46. Ke1 {[%clk 0:00:03.2]} 46... Rd6 {[%clk
0:00:04]} 47. Ke2 {[%clk 0:00:03.4]} 47... Rxb6 {[%clk 0:00:03.6]} 48. Rc7
{[%clk 0:00:04.2]} 48... Rb2+ {[%clk 0:00:03.2]} 49. R7c2 {[%clk 0:00:04.1]}
49... Rxc2+ {[%clk 0:00:03.2]} 50. Rxc2 {[%clk 0:00:05]} 50... b5 {[%clk
0:00:03.9]} 51. Rb2 {[%clk 0:00:05.9]} 51... Rb7 {[%clk 0:00:03.9]} 52. Kd2
{[%clk 0:00:06.6]} 52... b4 {[%clk 0:00:03.4]} 53. Kc2 {[%clk 0:00:06.7]} 53...
Ke5 {[%clk 0:00:03.5]} 54. Kb3 {[%clk 0:00:07.6]} 54... d4 {[%clk 0:00:04.1]}
55. exd4+ {[%clk 0:00:08.1]} 55... Kxd4 {[%clk 0:00:05]} 56. Rd2+ {[%clk
0:00:08.9]} 56... Ke5 {[%clk 0:00:05.4]} 57. Rd8 {[%clk 0:00:08.6]} 57... g5
{[%clk 0:00:04.8]} 58. Re8+ {[%clk 0:00:08.8]} 58... Kf5 {[%clk 0:00:03.3]} 59.
Rf8+ {[%clk 0:00:09.1]} 59... Kg6 {[%clk 0:00:03.8]} 60. Re8 {[%clk 0:00:09.5]}
60... Rf7 {[%clk 0:00:03.6]} 61. Rxe4 {[%clk 0:00:09]} 61... Rxf2 {[%clk
0:00:04]} 62. g4 {[%clk 0:00:09.9]} 62... hxg4 {[%clk 0:00:04.3]} 63. hxg4
{[%clk 0:00:09.6]} 63... Rf4 {[%clk 0:00:04.6]} 64. Re6+ {[%clk 0:00:09.9]}
64... Kf7 {[%clk 0:00:04.9]} 65. Rc6 {[%clk 0:00:09.8]} 65... Rxg4 {[%clk
0:00:05.1]} 0-1